[Event "Early-Titled-Tuesday-Blitz-October-03-2023"]
[Site "Chess.com"]
[Date "2023.10.03"]
[Round "7"]
[White "Orest_Vovk"]
[Black "AEMEffi"]
[Result "1/2-1/2"]
[WhiteElo "2512"]
[BlackElo "2392"]
[TimeControl "180+1"]
[EndTime "9:20:39 PDT"]
[Termination "Game drawn - insufficient material"]

1. h4 {[%clk 0:01:26]} 1... d5 {[%clk 0:02:58.3]} 2. h5 {[%clk 0:01:24.9]} 2...
e5 {[%clk 0:02:56.6]} 3. h6 {[%clk 0:01:22.9]} 3... Nxh6 {[%clk 0:02:53.9]} 4.
d4 {[%clk 0:01:22.8]} 4... e4 {[%clk 0:02:44.8]} 5. Bxh6 {[%clk 0:01:17]} 5...
gxh6 {[%clk 0:02:45.7]} 6. e3 {[%clk 0:01:17.5]} 6... Bf5 {[%clk 0:02:37.8]} 7.
c4 {[%clk 0:01:13]} 7... c6 {[%clk 0:02:33.2]} 8. Qb3 {[%clk 0:01:13.1]} 8...
Qb6 {[%clk 0:02:26.5]} 9. Nc3 {[%clk 0:01:09.6]} 9... Qxb3 {[%clk 0:02:21.9]}
10. axb3 {[%clk 0:01:09.1]} 10... dxc4 {[%clk 0:02:16.3]} 11. bxc4 {[%clk
0:01:07]} 11... Nd7 {[%clk 0:02:10.7]} 12. c5 {[%clk 0:01:03.2]} 12... Rg8
{[%clk 0:01:57.6]} 13. b4 {[%clk 0:00:53.8]} 13... Rg6 {[%clk 0:01:52.7]} 14. b5
{[%clk 0:00:51.9]} 14... Bg7 {[%clk 0:01:43.1]} 15. bxc6 {[%clk 0:00:47.4]}
15... bxc6 {[%clk 0:01:42]} 16. Kd2 {[%clk 0:00:41.9]} 16... a5 {[%clk 0:01:21]}
17. Nh3 {[%clk 0:00:39.7]} 17... Bxh3 {[%clk 0:01:17.4]} 18. Rxh3 {[%clk
0:00:38.6]} 18... f5 {[%clk 0:01:17.2]} 19. g3 {[%clk 0:00:32.8]} 19... Nf6
{[%clk 0:01:09.9]} 20. Bc4 {[%clk 0:00:24.5]} 20... Ng4 {[%clk 0:01:09.5]} 21.
Ke2 {[%clk 0:00:24.4]} 21... Rb8 {[%clk 0:01:07.8]} 22. Ra2 {[%clk 0:00:23.6]}
22... Kd7 {[%clk 0:01:01]} 23. Na4 {[%clk 0:00:18.2]} 23... Rb4 {[%clk
0:00:59.5]} 24. Nb6+ {[%clk 0:00:18]} 24... Kc7 {[%clk 0:00:57.3]} 25. Rh5
{[%clk 0:00:16.4]} 25... Rg5 {[%clk 0:00:44.9]} 26. Rh1 {[%clk 0:00:13.8]} 26...
h5 {[%clk 0:00:35]} 27. Rh4 {[%clk 0:00:13]} 27... Bf6 {[%clk 0:00:34]} 28. Rxg4
{[%clk 0:00:11.9]} 28... fxg4 {[%clk 0:00:19.4]} 29. Rxa5 {[%clk 0:00:11.6]}
29... Rxb6 {[%clk 0:00:19.8]} 30. cxb6+ {[%clk 0:00:11.7]} 30... Kxb6 {[%clk
0:00:20.7]} 31. Rxg5 {[%clk 0:00:02.2]} 31... Bxg5 {[%clk 0:00:21.6]} 32. Be6
{[%clk 0:00:02.7]} 32... c5 {[%clk 0:00:16.8]} 33. dxc5+ {[%clk 0:00:03.6]}
33... Kxc5 {[%clk 0:00:16.9]} 34. Bf5 {[%clk 0:00:04.5]} 34... Kd5 {[%clk
0:00:16.5]} 35. Bxh7 {[%clk 0:00:04.5]} 35... Ke5 {[%clk 0:00:12.8]} 36. Kf1
{[%clk 0:00:03.4]} 36... h4 {[%clk 0:00:12.7]} 37. gxh4 {[%clk 0:00:03.3]} 37...
Bxh4 {[%clk 0:00:13.6]} 38. Kg2 {[%clk 0:00:03.9]} 38... g3 {[%clk 0:00:10.8]}
39. fxg3 {[%clk 0:00:03.5]} 39... Bg5 {[%clk 0:00:11.1]} 40. Kf2 {[%clk
0:00:03.7]} 40... Bh6 {[%clk 0:00:10.6]} 41. g4 {[%clk 0:00:03.5]} 41... Bg5
{[%clk 0:00:11]} 42. Bf5 {[%clk 0:00:03.1]} 42... Bh6 {[%clk 0:00:11.1]} 43. Ke2
{[%clk 0:00:03.9]} 43... Bg5 {[%clk 0:00:11.4]} 44. Bc8 {[%clk 0:00:03.9]} 44...
Bh6 {[%clk 0:00:11.7]} 45. Kf2 {[%clk 0:00:04]} 45... Bg5 {[%clk 0:00:11.7]} 46.
Ke2 {[%clk 0:00:03.7]} 46... Bh6 {[%clk 0:00:11.4]} 47. Kf2 {[%clk 0:00:04]}
47... Bg5 {[%clk 0:00:11.3]} 48. Bd7 {[%clk 0:00:03.3]} 48... Bh6 {[%clk
0:00:10.9]} 49. Bf5 {[%clk 0:00:03.4]} 49... Bg5 {[%clk 0:00:10.6]} 50. Ke2
{[%clk 0:00:03.5]} 50... Bh6 {[%clk 0:00:10.3]} 51. Bh7 {[%clk 0:00:03.7]} 51...
Bg5 {[%clk 0:00:10.5]} 52. Bg8 {[%clk 0:00:04.6]} 52... Bh6 {[%clk 0:00:10.3]}
53. Ba2 {[%clk 0:00:05.5]} 53... Bg5 {[%clk 0:00:10.4]} 54. Bb1 {[%clk
0:00:06.4]} 54... Bh6 {[%clk 0:00:10.6]} 55. Bc2 {[%clk 0:00:07.3]} 55... Bg5
{[%clk 0:00:10.7]} 56. Bd1 {[%clk 0:00:08.2]} 56... Bh6 {[%clk 0:00:10.6]} 57.
Ba4 {[%clk 0:00:09.1]} 57... Bg5 {[%clk 0:00:11]} 58. Bb5 {[%clk 0:00:09.8]}
58... Bh6 {[%clk 0:00:11.1]} 59. Ba6 {[%clk 0:00:10.7]} 59... Bg5 {[%clk
0:00:11.6]} 60. Bb7 {[%clk 0:00:11.6]} 60... Bh6 {[%clk 0:00:11.9]} 61. Ba8
{[%clk 0:00:12.5]} 61... Bg5 {[%clk 0:00:12.1]} 62. Kf2 {[%clk 0:00:12.9]} 62...
Bh6 {[%clk 0:00:11.9]} 63. Kg3 {[%clk 0:00:13]} 63... Bxe3 {[%clk 0:00:11.8]}
64. Bxe4 {[%clk 0:00:10.8]} 64... Kxe4 {[%clk 0:00:11.4]} 65. g5 {[%clk
0:00:11.7]} 65... Bxg5 {[%clk 0:00:11.3]} 1/2-1/2

[Event "Early-Titled-Tuesday-Blitz-October-03-2023"]
[Site "Chess.com"]
[Date "2023.10.03"]
[Round "7"]
[White "hellokostya"]
[Black "Byniolus"]
[Result "0-1"]
[WhiteElo "2548"]
[BlackElo "2739"]
[TimeControl "180+1"]
[EndTime "9:20:44 PDT"]
[Termination "Byniolus won by resignation"]

1. Nf3 {[%clk 0:03:00.9]} 1... d5 {[%clk 0:02:59.7]} 2. e3 {[%clk 0:02:59.3]}
2... Nf6 {[%clk 0:02:59.6]} 3. c4 {[%clk 0:02:58.8]} 3... c6 {[%clk 0:02:59.5]}
4. Nc3 {[%clk 0:02:58.4]} 4... Bg4 {[%clk 0:02:59]} 5. h3 {[%clk 0:02:56.1]}
5... Bxf3 {[%clk 0:02:56.3]} 6. Qxf3 {[%clk 0:02:57]} 6... e6 {[%clk 0:02:56.7]}
7. d4 {[%clk 0:02:55.8]} 7... Nbd7 {[%clk 0:02:55.7]} 8. cxd5 {[%clk 0:02:52.1]}
8... cxd5 {[%clk 0:02:55.2]} 9. Bd3 {[%clk 0:02:51.7]} 9... Bd6 {[%clk 0:02:55]}
10. O-O {[%clk 0:02:49.2]} 10... O-O {[%clk 0:02:53.4]} 11. e4 {[%clk
0:02:48.5]} 11... dxe4 {[%clk 0:02:23.9]} 12. Nxe4 {[%clk 0:02:49.4]} 12... Be7
{[%clk 0:02:13]} 13. Nxf6+ {[%clk 0:02:45]} 13... Nxf6 {[%clk 0:02:11.4]} 14.
Qxb7 {[%clk 0:02:42.6]} 14... Qxd4 {[%clk 0:02:06.8]} 15. Rd1 {[%clk 0:02:20]}
15... Qb4 {[%clk 0:02:02.4]} 16. Qxb4 {[%clk 0:02:18.7]} 16... Bxb4 {[%clk
0:02:03.3]} 17. a3 {[%clk 0:02:19.1]} 17... Bc5 {[%clk 0:02:02.4]} 18. b4 {[%clk
0:02:17.4]} 18... Bb6 {[%clk 0:02:02.6]} 19. Bb2 {[%clk 0:02:15.9]} 19... Nd5
{[%clk 0:01:58.2]} 20. Be4 {[%clk 0:02:12.5]} 20... Rfd8 {[%clk 0:01:56.4]} 21.
Bxd5 {[%clk 0:02:07]} 21... exd5 {[%clk 0:01:51]} 22. Rd2 {[%clk 0:02:05.1]}
22... Rd7 {[%clk 0:01:45]} 23. Rad1 {[%clk 0:02:04.7]} 23... Rad8 {[%clk
0:01:45.2]} 24. Bd4 {[%clk 0:02:05.2]} 24... f6 {[%clk 0:01:42.8]} 25. Bxb6
{[%clk 0:02:02.4]} 25... axb6 {[%clk 0:01:43.7]} 26. Rd4 {[%clk 0:02:02.3]}
26... Kf7 {[%clk 0:01:43.8]} 27. Kf1 {[%clk 0:01:59.7]} 27... Ke6 {[%clk
0:01:43.2]} 28. Rc1 {[%clk 0:01:57.2]} 28... Rd6 {[%clk 0:01:36.1]} 29. Ke2
{[%clk 0:01:55.3]} 29... h5 {[%clk 0:01:35.1]} 30. Kd3 {[%clk 0:01:54.7]} 30...
g5 {[%clk 0:01:34.3]} 31. Rc7 {[%clk 0:01:50.7]} 31... Ra8 {[%clk 0:01:31.8]}
32. g3 {[%clk 0:01:32]} 32... Rxa3+ {[%clk 0:01:28.6]} 33. Ke2 {[%clk 0:01:30]}
33... Rb3 {[%clk 0:01:14.7]} 34. Rh7 {[%clk 0:01:28.6]} 34... Ke5 {[%clk
0:01:10.8]} 35. Rd2 {[%clk 0:01:26.5]} 35... Rxb4 {[%clk 0:00:59.5]} 36. Rxh5
{[%clk 0:01:24.7]} 36... Kf5 {[%clk 0:00:55.2]} 37. Rh8 {[%clk 0:01:22.2]} 37...
b5 {[%clk 0:00:54.2]} 38. Rb8 {[%clk 0:01:19.6]} 38... Re4+ {[%clk 0:00:50.6]}
39. Kf3 {[%clk 0:01:19.2]} 39... Rb4 {[%clk 0:00:49.5]} 40. Ke2 {[%clk
0:01:16.6]} 40... d4 {[%clk 0:00:47.1]} 41. Rd3 {[%clk 0:01:14.5]} 41... Rb2+
{[%clk 0:00:45.7]} 42. Kf3 {[%clk 0:01:14.8]} 42... b4 {[%clk 0:00:44.1]} 43.
Rb5+ {[%clk 0:01:09.9]} 43... Ke6 {[%clk 0:00:42.9]} 44. h4 {[%clk 0:01:08.7]}
44... gxh4 {[%clk 0:00:40.9]} 45. gxh4 {[%clk 0:01:09.6]} 45... Rd5 {[%clk
0:00:39.4]} 46. Rb6+ {[%clk 0:01:06.2]} 46... Ke5 {[%clk 0:00:36.3]} 47. h5
{[%clk 0:01:03]} 47... Rb1 {[%clk 0:00:20.5]} 48. h6 {[%clk 0:00:55]} 48... Rh1
{[%clk 0:00:19.7]} 49. Rxb4 {[%clk 0:00:54.6]} 49... Rxh6 {[%clk 0:00:19]} 50.
Rb8 {[%clk 0:00:52.2]} 50... Kf5 {[%clk 0:00:14.4]} 51. Re8 {[%clk 0:00:48.1]}
51... Re5 {[%clk 0:00:09.7]} 52. Rg8 {[%clk 0:00:42.6]} 52... Rh3+ {[%clk
0:00:05]} 53. Rg3 {[%clk 0:00:43.1]} 53... Rh4 {[%clk 0:00:04.5]} 54. Rg8 {[%clk
0:00:39.3]} 54... Rf4+ {[%clk 0:00:04.8]} 55. Kg3 {[%clk 0:00:39.4]} 55... Ke4
{[%clk 0:00:04.5]} 56. Rd2 {[%clk 0:00:36.9]} 56... Rg5+ {[%clk 0:00:02.9]} 57.
Rxg5 {[%clk 0:00:35.5]} 57... fxg5 {[%clk 0:00:03.8]} 58. Ra2 {[%clk 0:00:32.2]}
58... Kd3 {[%clk 0:00:01.9]} 59. Ra5 {[%clk 0:00:31.7]} 59... Kc3 {[%clk
0:00:01.5]} 60. Rxg5 {[%clk 0:00:31.4]} 60... Rf7 {[%clk 0:00:01.6]} 61. Rc5+
{[%clk 0:00:30]} 61... Kd2 {[%clk 0:00:01.8]} 62. f4 {[%clk 0:00:28.9]} 62... d3
{[%clk 0:00:02.5]} 63. Rd5 {[%clk 0:00:28.6]} 63... Ke3 {[%clk 0:00:02.7]} 64.
f5 {[%clk 0:00:27.9]} 64... Ke4 {[%clk 0:00:02.4]} 65. Rxd3 {[%clk 0:00:19.3]}
65... Kxd3 {[%clk 0:00:01.9]} 66. Kf4 {[%clk 0:00:20.1]} 66... Kd4 {[%clk
0:00:02.2]} 67. f6 {[%clk 0:00:12.7]} 67... Rxf6+ {[%clk 0:00:02.4]} 0-1

[Event "Early-Titled-Tuesday-Blitz-October-03-2023"]
[Site "Chess.com"]
[Date "2023.10.03"]
[Round "7"]
[White "QuintilianoR"]
[Black "Ducke13"]
[Result "1-0"]
[WhiteElo "2654"]
[BlackElo "2497"]
[TimeControl "180+1"]
[EndTime "9:20:46 PDT"]
[Termination "QuintilianoR won by checkmate"]

1. Nf3 {[%clk 0:03:00.9]} 1... Nf6 {[%clk 0:02:59.1]} 2. g3 {[%clk 0:02:59.9]}
2... g6 {[%clk 0:02:58]} 3. Bg2 {[%clk 0:03:00.3]} 3... Bg7 {[%clk 0:02:58.7]}
4. O-O {[%clk 0:03:00.8]} 4... O-O {[%clk 0:02:59.4]} 5. c4 {[%clk 0:02:59.3]}
5... c5 {[%clk 0:02:59.7]} 6. Nc3 {[%clk 0:02:58.8]} 6... Nc6 {[%clk 0:02:59.8]}
7. d4 {[%clk 0:02:58.7]} 7... cxd4 {[%clk 0:03:00.7]} 8. Nxd4 {[%clk 0:02:59.2]}
8... Qa5 {[%clk 0:03:01.2]} 9. Nb3 {[%clk 0:02:53]} 9... Qh5 {[%clk 0:03:01]}
10. e4 {[%clk 0:02:52.8]} 10... Qxd1 {[%clk 0:02:56.9]} 11. Rxd1 {[%clk
0:02:53.7]} 11... d6 {[%clk 0:02:57]} 12. h3 {[%clk 0:02:42.5]} 12... Nd7 {[%clk
0:02:56.6]} 13. Nd5 {[%clk 0:02:35.1]} 13... a5 {[%clk 0:02:46.1]} 14. a4 {[%clk
0:02:08]} 14... Rd8 {[%clk 0:02:32.5]} 15. Bg5 {[%clk 0:01:58.1]} 15... Kf8
{[%clk 0:02:31.7]} 16. Rd2 {[%clk 0:01:43]} 16... h6 {[%clk 0:02:30.7]} 17. Be3
{[%clk 0:01:41.3]} 17... Nde5 {[%clk 0:01:45.7]} 18. Rc1 {[%clk 0:01:40.2]}
18... Bxh3 {[%clk 0:01:20.3]} 19. Bxh3 {[%clk 0:01:35.8]} 19... Nf3+ {[%clk
0:01:20]} 20. Kg2 {[%clk 0:01:36.2]} 20... Nxd2 {[%clk 0:01:20.9]} 21. Nxd2
{[%clk 0:01:36.4]} 21... Bxb2 {[%clk 0:01:13.9]} 22. Rb1 {[%clk 0:01:36]} 22...
Bg7 {[%clk 0:01:06.1]} 23. Rxb7 {[%clk 0:01:35]} 23... e6 {[%clk 0:00:55.9]} 24.
Nf4 {[%clk 0:00:52.4]} 24... Rdb8 {[%clk 0:00:45.1]} 25. Rd7 {[%clk 0:00:41]}
25... Be5 {[%clk 0:00:10.2]} 26. Nf3 {[%clk 0:00:24.6]} 26... g5 {[%clk
0:00:09.6]} 27. Nh5 {[%clk 0:00:16.7]} 27... Rd8 {[%clk 0:00:09.6]} 28. Rc7
{[%clk 0:00:16.7]} 28... Rac8 {[%clk 0:00:09.4]} 29. Rb7 {[%clk 0:00:17.1]}
29... Rb8 {[%clk 0:00:09.8]} 30. Rb5 {[%clk 0:00:17.2]} 30... Nb4 {[%clk
0:00:09.3]} 31. Nxe5 {[%clk 0:00:16.2]} 31... dxe5 {[%clk 0:00:10.2]} 32. Rxe5
{[%clk 0:00:15.9]} 32... Nd3 {[%clk 0:00:09.7]} 33. Rxa5 {[%clk 0:00:15.8]}
33... Rb4 {[%clk 0:00:09.5]} 34. Ra7 {[%clk 0:00:14.7]} 34... Ne1+ {[%clk
0:00:09.8]} 35. Kf1 {[%clk 0:00:14.2]} 35... Rd1 {[%clk 0:00:10.1]} 36. Ke2
{[%clk 0:00:14.2]} 36... Ra1 {[%clk 0:00:09.8]} 37. Bc5+ {[%clk 0:00:14.5]}
37... Ke8 {[%clk 0:00:06.3]} 38. Nf6+ {[%clk 0:00:13.2]} 38... Kd8 {[%clk
0:00:06.2]} 39. Bxb4 {[%clk 0:00:13.8]} 39... Nc2 {[%clk 0:00:06.5]} 40. Bd6
{[%clk 0:00:14]} 40... Nd4+ {[%clk 0:00:06]} 41. Ke3 {[%clk 0:00:13.9]} 41...
Nc2+ {[%clk 0:00:05.9]} 42. Kd2 {[%clk 0:00:13.4]} 42... Kc8 {[%clk 0:00:04.7]}
43. Rc7+ {[%clk 0:00:13.1]} 43... Kd8 {[%clk 0:00:04]} 44. Kxc2 {[%clk
0:00:12.7]} 44... Rxa4 {[%clk 0:00:02.9]} 45. Rb7 {[%clk 0:00:12.1]} 45... Rxc4+
{[%clk 0:00:03.4]} 46. Kd3 {[%clk 0:00:12.7]} 46... Rc1 {[%clk 0:00:03.4]} 47.
Rb8+ {[%clk 0:00:12.7]} 47... Rc8 {[%clk 0:00:03.9]} 48. Rxc8+ {[%clk
0:00:13.3]} 48... Kxc8 {[%clk 0:00:04.8]} 49. Ng8 {[%clk 0:00:13.7]} 49... h5
{[%clk 0:00:04.8]} 50. Be7 {[%clk 0:00:14]} 50... g4 {[%clk 0:00:05.2]} 51. Bxg4
{[%clk 0:00:14.5]} 51... hxg4 {[%clk 0:00:05.5]} 52. Nh6 {[%clk 0:00:15.4]}
52... Kd7 {[%clk 0:00:03.7]} 53. Bf6 {[%clk 0:00:16.3]} 53... Ke8 {[%clk
0:00:03.7]} 54. Nxg4 {[%clk 0:00:17.2]} 54... Kf8 {[%clk 0:00:03.9]} 55. Kd4
{[%clk 0:00:17.9]} 55... Kg8 {[%clk 0:00:04.8]} 56. Be5 {[%clk 0:00:18.3]} 56...
Kh7 {[%clk 0:00:05.7]} 57. Bf4 {[%clk 0:00:18.9]} 57... Kg6 {[%clk 0:00:06.6]}
58. Ne3 {[%clk 0:00:19.4]} 58... Kh5 {[%clk 0:00:06.5]} 59. e5 {[%clk
0:00:20.3]} 59... Kg6 {[%clk 0:00:06.5]} 60. f3 {[%clk 0:00:20.9]} 60... Kh5
{[%clk 0:00:06.4]} 61. g4+ {[%clk 0:00:21.4]} 61... Kg6 {[%clk 0:00:05.8]} 62.
Ng2 {[%clk 0:00:22.1]} 62... Kg7 {[%clk 0:00:05.7]} 63. Ke4 {[%clk 0:00:22.5]}
63... Kg6 {[%clk 0:00:06.6]} 64. Be3 {[%clk 0:00:22.7]} 64... Kg7 {[%clk
0:00:06.8]} 65. Kf4 {[%clk 0:00:23.4]} 65... Kg6 {[%clk 0:00:07.7]} 66. Nh4+
{[%clk 0:00:23.5]} 66... Kg7 {[%clk 0:00:08.6]} 67. Kg5 {[%clk 0:00:23.6]} 67...
Kf8 {[%clk 0:00:09.1]} 68. Ng2 {[%clk 0:00:24]} 68... Kg7 {[%clk 0:00:09.5]} 69.
Nf4 {[%clk 0:00:24.5]} 69... Kf8 {[%clk 0:00:10.4]} 70. Kf6 {[%clk 0:00:24.9]}
70... Kg8 {[%clk 0:00:10.8]} 71. Nh3 {[%clk 0:00:25.6]} 71... Kf8 {[%clk
0:00:11.1]} 72. Ng5 {[%clk 0:00:26.1]} 72... Kg8 {[%clk 0:00:12]} 73. Nxf7
{[%clk 0:00:25.7]} 73... Kf8 {[%clk 0:00:12.9]} 74. Ng5 {[%clk 0:00:26.1]} 74...
Kg8 {[%clk 0:00:13.8]} 75. Nxe6 {[%clk 0:00:25.9]} 75... Kh8 {[%clk 0:00:14.1]}
76. Ng5 {[%clk 0:00:26]} 76... Kg8 {[%clk 0:00:14.5]} 77. e6 {[%clk 0:00:26.5]}
77... Kh8 {[%clk 0:00:15.4]} 78. e7 {[%clk 0:00:26.5]} 78... Kg8 {[%clk
0:00:16.3]} 79. e8=Q# {[%clk 0:00:26.7]} 1-0

[Event "Early-Titled-Tuesday-Blitz-October-03-2023"]
[Site "Chess.com"]
[Date "2023.10.03"]
[Round "7"]
[White "PeshkaCh"]
[Black "grzechu96"]
[Result "1-0"]
[WhiteElo "2801"]
[BlackElo "2674"]
[TimeControl "180+1"]
[EndTime "9:20:48 PDT"]
[Termination "PeshkaCh won on time"]

1. Nf3 {[%clk 0:03:00.9]} 1... c5 {[%clk 0:02:54.3]} 2. c4 {[%clk 0:03:01]} 2...
Nc6 {[%clk 0:02:53.6]} 3. Nc3 {[%clk 0:03:01.3]} 3... g6 {[%clk 0:02:52.2]} 4.
g3 {[%clk 0:03:01.9]} 4... Bg7 {[%clk 0:02:52.3]} 5. Bg2 {[%clk 0:03:02.7]} 5...
e6 {[%clk 0:02:52.7]} 6. O-O {[%clk 0:03:02.8]} 6... Nge7 {[%clk 0:02:52.9]} 7.
d3 {[%clk 0:03:00.3]} 7... O-O {[%clk 0:02:43.8]} 8. a3 {[%clk 0:02:55.4]} 8...
d5 {[%clk 0:02:40.1]} 9. cxd5 {[%clk 0:02:52.4]} 9... exd5 {[%clk 0:02:37.9]}
10. Bg5 {[%clk 0:02:51.5]} 10... h6 {[%clk 0:02:26.6]} 11. Bxe7 {[%clk
0:02:48.2]} 11... Nxe7 {[%clk 0:02:27.5]} 12. Rc1 {[%clk 0:02:48.1]} 12... Be6
{[%clk 0:02:24.6]} 13. d4 {[%clk 0:02:39.5]} 13... c4 {[%clk 0:02:05.8]} 14. e4
{[%clk 0:02:40]} 14... Rc8 {[%clk 0:01:57.7]} 15. exd5 {[%clk 0:02:39.2]} 15...
Nxd5 {[%clk 0:01:58.1]} 16. Re1 {[%clk 0:02:01.3]} 16... Qa5 {[%clk 0:01:44.1]}
17. Ne5 {[%clk 0:02:00.1]} 17... Nxc3 {[%clk 0:01:06.4]} 18. Rxc3 {[%clk
0:02:01]} 18... Bd5 {[%clk 0:00:57.9]} 19. Qg4 {[%clk 0:01:27.9]} 19... Bxg2
{[%clk 0:00:55.8]} 20. Kxg2 {[%clk 0:01:27.4]} 20... Qd5+ {[%clk 0:00:42.1]} 21.
Qe4 {[%clk 0:01:14.6]} 21... Rfd8 {[%clk 0:00:35.3]} 22. Qxd5 {[%clk 0:01:00.8]}
22... Rxd5 {[%clk 0:00:36.2]} 23. Rxc4 {[%clk 0:01:00.3]} 23... Rxc4 {[%clk
0:00:35.1]} 24. Nxc4 {[%clk 0:01:01.2]} 24... Rxd4 {[%clk 0:00:30.3]} 25. Re8+
{[%clk 0:00:55.8]} 25... Kh7 {[%clk 0:00:29.4]} 26. Ne3 {[%clk 0:00:55.8]} 26...
Rd7 {[%clk 0:00:09.2]} 27. b4 {[%clk 0:00:56.2]} 27... Bd4 {[%clk 0:00:08]} 28.
Kf3 {[%clk 0:00:53.5]} 28... Kg7 {[%clk 0:00:08.1]} 29. h4 {[%clk 0:00:51.7]}
29... h5 {[%clk 0:00:08]} 30. a4 {[%clk 0:00:48.6]} 30... a6 {[%clk 0:00:07.8]}
31. Re4 {[%clk 0:00:38.6]} 31... Ba7 {[%clk 0:00:07.4]} 32. Ke2 {[%clk
0:00:33.1]} 32... Kf8 {[%clk 0:00:07.5]} 33. Rc4 {[%clk 0:00:32.8]} 33... Ke7
{[%clk 0:00:07.4]} 34. Re4+ {[%clk 0:00:27.8]} 34... Kd8 {[%clk 0:00:07.3]} 35.
Nc4 {[%clk 0:00:25.9]} 35... Bd4 {[%clk 0:00:02.5]} 36. b5 {[%clk 0:00:19.6]}
36... axb5 {[%clk 0:00:03.4]} 37. axb5 {[%clk 0:00:20.5]} 37... Bc5 {[%clk
0:00:03.3]} 38. Ne5 {[%clk 0:00:20.2]} 38... Re7 {[%clk 0:00:03.9]} 39. Kf3
{[%clk 0:00:19.4]} 39... Kc7 {[%clk 0:00:03.4]} 40. Nd3 {[%clk 0:00:17.1]} 40...
Bd6 {[%clk 0:00:03.2]} 41. Rxe7+ {[%clk 0:00:16]} 41... Bxe7 {[%clk 0:00:04.1]}
42. Ne5 {[%clk 0:00:16.9]} 42... Kb6 {[%clk 0:00:04.6]} 43. Nxf7 {[%clk
0:00:17.5]} 43... Kxb5 {[%clk 0:00:03.1]} 44. Ne5 {[%clk 0:00:18]} 44... Bf6
{[%clk 0:00:02.5]} 45. Nxg6 {[%clk 0:00:17.7]} 45... Kc4 {[%clk 0:00:03.2]} 46.
Ke2 {[%clk 0:00:16]} 46... Kc3 {[%clk 0:00:03]} 47. Nf4 {[%clk 0:00:15.9]} 47...
Be5 {[%clk 0:00:02.1]} 48. Nd5+ {[%clk 0:00:13.8]} 48... Kc2 {[%clk 0:00:01.7]}
49. f4 {[%clk 0:00:14]} 49... Bd6 {[%clk 0:00:01.9]} 50. Ke3 {[%clk 0:00:11]}
50... b5 {[%clk 0:00:02.1]} 51. Ke4 {[%clk 0:00:11.7]} 51... Kb3 {[%clk
0:00:02.2]} 52. Kd4 {[%clk 0:00:10]} 52... Ka4 {[%clk 0:00:01.5]} 53. Nc3+
{[%clk 0:00:10]} 53... Ka5 {[%clk 0:00:01.4]} 54. Nxb5 {[%clk 0:00:09.9]} 54...
Kxb5 {[%clk 0:00:02.3]} 55. Kd5 {[%clk 0:00:10.8]} 55... Bb8 {[%clk 0:00:02]}
56. Ke6 {[%clk 0:00:07.6]} 56... Kc5 {[%clk 0:00:02.2]} 57. Kf5 {[%clk
0:00:08.3]} 57... Kd5 {[%clk 0:00:02.3]} 58. Kg5 {[%clk 0:00:09]} 58... Ke4
{[%clk 0:00:02.9]} 59. Kxh5 {[%clk 0:00:09.1]} 59... Kf5 {[%clk 0:00:03.6]} 60.
Kh6 {[%clk 0:00:09.5]} 60... Kg4 {[%clk 0:00:04]} 61. h5 {[%clk 0:00:08.8]}
61... Kxg3 {[%clk 0:00:04.1]} 62. f5 {[%clk 0:00:09.4]} 62... Be5 {[%clk
0:00:03.7]} 63. Kg6 {[%clk 0:00:08.9]} 63... Kg4 {[%clk 0:00:04.2]} 64. h6
{[%clk 0:00:09]} 64... Kf4 {[%clk 0:00:02.4]} 65. f6 {[%clk 0:00:08.9]} 1-0